fUSD/lending_fUSD_20241122
["ID","MTS","AMOUNT","RATE_DAILY","PERIOD"]
[343007666,1732272650111,-500.0,0.0009041,120]
[343007667,1732272650120,-500.0,0.0009041,120]
[343007668,1732272650129,-500.0,0.0009041,120]
[343007669,1732272650138,-500.0,0.0009041,120]
[343007670,1732272650153,-500.0,0.0009041,120]
[343007671,1732272650163,-500.0,0.0009041,120]
[343007672,1732272650173,-500.0,0.0009041,120]
[343007673,1732272650182,-500.0,0.0009041,120]
[343007674,1732272650191,-500.0,0.0009041,120]
[343007675,1732272650202,-500.0,0.0009041,120]
[343007676,1732272650211,-572.91857853,0.0009041,120]
[343007677,1732272650221,-500.0,0.0009041,120]
[343007678,1732272650232,-541.43158334,0.0009041,120]
[343007679,1732272650241,-500.0,0.0009041,120]
[343007680,1732272650250,-500.0,0.0009041,120]
[343007681,1732272650260,-500.0,0.0009041,120]
[343007682,1732272650269,-500.0,0.0009041,120]
[343007683,1732272650278,-500.0,0.0009041,120]
[343007684,1732272650288,-500.0,0.0009041,120]
[343007685,1732272650297,-500.0,0.0009041,120]
[343007686,1732272650306,-502.65488542,0.0009041,120]
[343007687,1732272650318,-500.0,0.0009041,120]
[343007688,1732272650328,-500.0,0.0009041,120]
[343007689,1732272650338,-500.0,0.0009041,120]
[343007690,1732272650349,-500.0,0.0009041,120]
[343007691,1732272650359,-500.0,0.0009041,120]
[343007692,1732272650369,-500.0,0.0009041,120]
[343007693,1732272650379,-500.0,0.0009041,120]
[343007694,1732272650391,-622.50513531,0.0009041,120]
[343007695,1732272650400,-500.0,0.0009041,120]
[343007696,1732272650410,-500.0,0.0009041,120]
[343007697,1732272650421,-176.28577239,0.0009041,120]
[343007698,1732272650431,-503.08280904,0.0009041,120]
[343007699,1732272650441,-530.97297945,0.0009041,120]
[343007700,1732272650451,-500.0,0.0009041,120]
[343007701,1732272650460,-500.0,0.0009041,120]
[343007702,1732272650470,-500.0,0.0009041,120]
[343007703,1732272650480,-500.0,0.0009041,120]
[343007704,1732272650490,-500.0,0.0009041,120]
[343007705,1732272650500,-500.0,0.0009041,120]
[343007706,1732272650509,-566.84154041,0.0009041,120]
[343007707,1732272650520,-500.0,0.0009041,120]
[343007708,1732272650530,-500.0,0.0009041,120]
[343007709,1732272650540,-345.58,0.0009041,120]
[343007710,1732272650550,-500.0,0.0009041,120]
[343007711,1732272650560,-500.0,0.0009041,120]
[343007712,1732272650569,-500.0,0.0009041,120]
[343007713,1732272650579,-648.85064151,0.0009041,120]
[343007714,1732272650588,-189.30649952,0.0009041,120]
[343007715,1732272650598,-502.54930809,0.0009041,120]
[343007716,1732272650608,-500.0,0.0009041,120]
[343007717,1732272650618,-500.0,0.0009041,120]
[343007718,1732272650628,-500.0,0.0009041,120]
[343007719,1732272650638,-2000.0,0.0009041,30]
[343007720,1732272650649,-500.0,0.0009041,120]
[343007721,1732272650658,-2000.0,0.0009041,30]
[343007722,1732272650668,-475.0,0.0009041,120]
[343007723,1732272650678,-500.0,0.0009041,120]
[343007724,1732272650687,-500.0,0.0009041,120]
[343007725,1732272650697,-500.0,0.0009041,120]
[343007726,1732272650707,-501.47602378,0.0009041,120]
[343007727,1732272650716,-500.0,0.0009041,120]
[343007728,1732272650726,-500.0,0.0009041,120]
[343007729,1732272650735,-500.0,0.0009041,120]
[343007730,1732272650745,-500.0,0.0009041,120]
[343007731,1732272650754,-441.65726383,0.0009041,120]
[343007732,1732272650764,-500.0,0.0009041,120]
[343007733,1732272650773,-502.66512614,0.0009041,120]
[343007734,1732272650783,-500.0,0.0009041,120]
[343007735,1732272650793,-500.0,0.0009041,120]
[343007736,1732272650802,-500.0,0.0009041,120]
[343007737,1732272650812,-500.0,0.0009041,120]
[343007738,1732272650821,-500.0,0.0009041,120]
[343007739,1732272650831,-508.33262228,0.0009041,120]
[343007740,1732272650840,-500.0,0.0009041,120]
[343007741,1732272650849,-207.84,0.0009041,120]
[343007742,1732272650859,-500.0,0.0009041,120]
[343007743,1732272650868,-500.0,0.0009041,120]
[343007744,1732272650878,-465.84500223,0.0009041,120]
[343007745,1732272650888,-500.0,0.0009041,120]
[343007746,1732272650899,-501.28882635,0.0009041,120]
[343007747,1732272650908,-500.0,0.0009041,120]
[343007748,1732272650918,-500.0,0.0009041,120]
[343007749,1732272650927,-503.94325368,0.0009041,120]
[343007750,1732272650936,-500.0,0.0009041,120]
[343007751,1732272650945,-500.0,0.0009041,120]
[343007752,1732272650955,-500.0,0.0009041,120]
[343007753,1732272650964,-500.0,0.0009041,120]
[343007754,1732272650973,-500.0,0.0009041,2]
[343007755,1732272650984,-500.0,0.0009041,120]
[343007756,1732272650993,-500.0,0.0009041,2]
[343007757,1732272651003,-484.46059212,0.0009041,120]
[343007758,1732272651013,-500.0,0.0009041,120]
[343007759,1732272651022,-500.0,0.0009041,120]
[343007760,1732272651032,-519.68,0.0009041,120]
[343007761,1732272651041,-500.0,0.0009041,120]
[343007762,1732272651051,-500.0,0.0009041,120]
[343007763,1732272651060,-500.0,0.0009041,120]
[343007764,1732272651070,-555.97756873,0.0009041,120]
[343007765,1732272651079,-500.0,0.0009041,120]
[343007766,1732272651088,-544.81760143,0.0009041,120]
[343007767,1732272651097,-500.0,0.0009041,7]
[343007768,1732272651106,-500.0,0.0009041,120]
[343007769,1732272651115,-500.0,0.0009041,120]
[343007770,1732272651124,-500.0,0.0009041,120]
[343007771,1732272651134,-500.0,0.0009041,120]
[343007772,1732272651146,-500.0,0.0009041,120]
[343007773,1732272651157,-500.0,0.0009041,120]
[343007774,1732272651166,-500.0,0.0009041,120]
[343007775,1732272651175,-500.0,0.0009041,120]
[343007776,1732272651186,-500.0,0.0009041,120]
[343007777,1732272651195,-500.0,0.0009041,120]
[343007778,1732272651205,-502.82265837,0.0009041,120]
[343007779,1732272651214,-500.0,0.0009041,120]
[343007780,1732272651223,-500.0,0.0009041,120]
[343007781,1732272651234,-500.0,0.0009041,120]
[343007782,1732272651243,-500.0,0.0009041,120]
[343007783,1732272651257,-500.0,0.0009041,120]
[343007784,1732272651266,-500.0,0.0009041,120]
[343007785,1732272651276,-502.79952059,0.0009041,120]
[343007786,1732272651285,-500.0,0.0009041,120]
[343007787,1732272651295,-500.0,0.0009041,120]
[343007788,1732272651306,-533.62593311,0.0009041,120]
[343007789,1732272651315,-500.0,0.0009041,120]
[343007790,1732272651324,-500.0,0.0009041,120]
[343007791,1732272651334,-500.0,0.0009041,120]
[343007792,1732272651344,-500.0,0.0009041,120]
[343007793,1732272651353,-500.0,0.0009041,120]
[343007794,1732272651363,-505.51000065,0.0009041,120]
[343007795,1732272651373,-500.0,0.0009041,120]
[343007796,1732272651383,-502.04183776,0.0009041,120]
[343007797,1732272651394,-500.0,0.0009041,120]
[343007798,1732272651404,-500.0,0.0009041,120]
[343007799,1732272651414,-500.0,0.0009041,120]
[343007800,1732272651424,-500.0,0.0009041,120]
[343007801,1732272651434,-476.32807946,0.0009041,120]
[343007802,1732272651443,-500.0,0.0009041,120]
[343007803,1732272651454,-500.0,0.0009041,120]
[343007804,1732272651464,-500.0,0.0009041,120]
[343007805,1732272651474,-500.0,0.0009041,120]
[343007806,1732272651527,-500.0,0.0009041,120]
[343007807,1732272651537,-503.95642964,0.0009041,120]
[343007808,1732272651546,-500.0,0.0009041,120]
[343007809,1732272651555,-500.0,0.0009041,120]
[343007810,1732272651564,-551.63066718,0.0009041,120]
[343007811,1732272651574,-500.0,0.0009041,120]
[343007812,1732272651584,-500.0,0.0009041,120]
[343007813,1732272651594,-500.0,0.0009041,120]
[343007814,1732272651604,-165.60183681,0.0009041,120]
[343007815,1732272651613,-500.0,0.0009041,120]
[343007816,1732272651623,-500.0,0.0009041,120]
[343007817,1732272651632,-500.0,0.0009041,120]
[343007818,1732272651643,-503.47198227,0.0009041,120]
[343007819,1732272651654,-500.0,0.0009041,120]
[343007820,1732272651664,-500.0,0.0009041,120]
[343007821,1732272651673,-500.0,0.0009041,120]
[343007822,1732272651683,-576.04550381,0.0009041,120]
[343007823,1732272651692,-633.80313334,0.0009041,120]
[343007824,1732272651701,-500.0,0.0009041,120]
[343007825,1732272651711,-500.0,0.0009041,120]
[343007826,1732272651720,-500.0,0.0009041,120]
[343007827,1732272651730,-500.0,0.0009041,120]
[343007828,1732272651739,-500.0,0.0009041,120]
[343007829,1732272651748,-576.21929982,0.0009041,120]
[343007830,1732272651757,-500.0,0.0009041,120]
[343007831,1732272651766,-500.0,0.0009041,120]
[343007832,1732272651775,-500.0,0.0009041,120]
[343007833,1732272651784,-500.0,0.0009041,120]
[343007834,1732272651793,-566.30559453,0.0009041,120]
[343007835,1732272651803,-216.98,0.0009041,120]
[343007836,1732272651812,-500.0,0.0009041,120]
[343007837,1732272651821,-572.53733739,0.0009041,120]
[343007838,1732272651830,-500.0,0.0009041,120]
[343007839,1732272651839,-500.0,0.0009041,120]
[343007840,1732272651849,-500.0,0.0009041,120]
[343007841,1732272651858,-522.64177127,0.0009041,120]
[343007842,1732272651867,-500.0,0.0009041,120]
[343007843,1732272651876,-500.0,0.0009041,120]
[343007844,1732272651886,-500.0,0.0009041,120]
[343007845,1732272651896,-500.0,0.0009041,120]
[343007846,1732272651905,-500.0,0.0009041,120]
[343007847,1732272651914,-500.0,0.0009041,120]
[343007848,1732272651923,-500.0,0.0009041,120]
[343007849,1732272651932,-536.28174089,0.0009041,120]
[343007850,1732272651941,-504.2074853,0.0009041,120]
[343007851,1732272651950,-506.6441441,0.0009041,120]
[343007852,1732272651959,-500.0,0.0009041,120]
[343007853,1732272651969,-500.0,0.0009041,120]
[343007854,1732272651978,-500.0,0.0009041,120]
[343007855,1732272651987,-502.04521718,0.0009041,120]
[343007856,1732272651996,-500.0,0.0009041,120]
[343007857,1732272652005,-500.0,0.0009041,120]
[343007858,1732272652014,-500.0,0.0009041,120]
[343007859,1732272652023,-500.0,0.0009041,120]
[343007860,1732272652032,-500.0,0.0009041,120]
[343007861,1732272652040,-503.02587177,0.0009041,120]
[343007862,1732272652049,-500.0,0.0009041,120]
[343007863,1732272652059,-500.0,0.0009041,120]
[343007864,1732272652067,-500.0,0.0009041,120]
[343007865,1732272652077,-633.44784062,0.0009041,120]
[343007866,1732272652086,-500.0,0.0009041,120]
[343007867,1732272652095,-500.0,0.0009041,120]
[343007868,1732272652104,-581.17544816,0.0009041,120]
[343007869,1732272652113,-500.0,0.0009041,120]
[343007870,1732272652122,-500.0,0.0009041,120]
[343007871,1732272652131,-500.0,0.0009041,120]
[343007872,1732272652140,-500.0,0.0009041,120]
[343007873,1732272652154,-500.0,0.0009041,120]
[343007874,1732272652163,-500.0,0.0009041,120]
[343007875,1732272652172,-466.16841378,0.0009041,120]
[343007876,1732272652181,-500.0,0.0009041,120]
[343007877,1732272652191,-578.29291708,0.0009041,120]
[343007878,1732272652200,-517.65316875,0.0009041,120]
[343007879,1732272652209,-500.0,0.0009041,120]
[343007880,1732272652218,-499.27887702,0.0009041,120]
[343007881,1732272652227,-500.0,0.0009041,120]
[343007882,1732272652237,-1000.0,0.0009041,120]
[343007883,1732272652246,-307.45911274,0.0009041,120]
[343007884,1732272652255,-500.5261311,0.0009041,120]
[343007885,1732272652264,-500.0,0.0009041,120]
[343007886,1732272652273,-714.48,0.0009041,120]
[343007887,1732272652282,-501.20815972,0.0009041,120]
[343007888,1732272652291,-500.0,0.0009041,120]
[343007889,1732272652300,-571.57603327,0.0009041,120]
[343007890,1732272652310,-714.48,0.0009041,120]
[343007891,1732272652320,-714.48,0.0009041,120]
[343007892,1732272652330,-520.68825092,0.0009041,120]
[343007893,1732272652339,-500.0,0.0009041,120]
[343007894,1732272652349,-500.0,0.0009041,120]
[343007895,1732272652358,-500.0,0.0009041,120]
[343007896,1732272652367,-500.0,0.0009041,120]
[343007897,1732272652377,-500.0,0.0009041,120]
[343007898,1732272652386,-500.0,0.0009041,120]
[343007899,1732272652396,-501.37247117,0.0009041,120]
[343007900,1732272652406,-500.0,0.0009041,120]
[343007901,1732272652416,-582.00295788,0.0009041,120]
[343007902,1732272652425,-634.05632798,0.0009041,120]
[343007903,1732272652435,-503.7408131,0.0009041,120]
[343007904,1732272652446,-500.0,0.0009041,120]
[343007905,1732272652455,-558.68139228,0.0009041,120]
[343007906,1732272652465,-152.4096789,0.0009041,120]
[343007907,1732272652474,-207.61301228,0.0009041,120]
[343007908,1732272652617,-292.38698772,0.0009041,120]
[343007909,1732272652626,-500.0,0.0009041,120]
[343007910,1732272652636,-501.66189642,0.0009041,120]
[343007911,1732272652647,-500.0,0.0009041,120]
[343007912,1732272652656,-387.62822897,0.0009041,120]
[343007913,1732272652665,-500.0,0.0009041,120]
[343007914,1732272652675,-500.0,0.0009041,120]
[343007915,1732272652683,-506.06194322,0.0009041,120]
[343007916,1732272652693,-500.0,0.0009041,120]
[343007917,1732272652702,-500.0,0.0009041,120]
[343007918,1732272652712,-500.0,0.0009041,120]
[343007919,1732272652721,-264.22496232,0.0009041,120]
[343007920,1732272652730,-500.0,0.0009041,120]
[343007921,1732272652740,-253.23493998,0.0009041,120]
[343007922,1732272652749,-502.80229099,0.0009041,120]
[343007923,1732272652758,-500.0,0.0009041,120]
[343007924,1732272652767,-563.49708525,0.0009041,120]
[343007925,1732272652776,-500.0,0.0009041,120]
[343007926,1732272652786,-500.0,0.0009041,120]
[343007927,1732272652795,-500.0,0.0009041,120]
[343007928,1732272652804,-500.0,0.0009041,120]
[343007929,1732272652813,-500.0,0.0009041,120]
[343007930,1732272652822,-500.0,0.0009041,120]
[343007931,1732272652831,-502.70647458,0.0009041,120]
[343007932,1732272652840,-500.0,0.0009041,120]
[343007933,1732272652849,-503.31325166,0.0009041,120]
[343007934,1732272652859,-500.0,0.0009041,120]
[343007935,1732272652868,-500.0,0.0009041,120]
[343007936,1732272652878,-500.0,0.0009041,120]
[343007937,1732272652887,-507.18910053,0.0009041,120]
[343007938,1732272652898,-500.0,0.0009041,120]
[343007939,1732272652907,-500.0,0.0009041,120]
[343007940,1732272652916,-500.79085384,0.0009041,120]
[343007941,1732272652926,-500.0,0.0009041,120]
[343007942,1732272652935,-500.0,0.0009041,120]
[343007943,1732272652944,-500.0,0.0009041,120]
[343007944,1732272652954,-642.71042811,0.0009041,120]
[343007945,1732272652963,-612.49159826,0.0009041,120]
[343007946,1732272652976,-500.0,0.0009041,120]
[343007947,1732272652987,-500.0,0.0009041,120]
[343007948,1732272652998,-500.0,0.0009041,120]
[343007949,1732272653008,-500.0,0.0009041,120]
[343007950,1732272653019,-500.0,0.00090684,120]
[343007951,1732272653030,-168.0,0.00090684,120]
[343007952,1732272653040,-297.06,0.00090684,120]
[343007953,1732272653049,-168.0,0.00090958,120]
[343007954,1732272653059,-500.0,0.00090999,120]
[343007955,1732272653068,-500.0,0.00090999,120]
[343007956,1732272653078,-404.34,0.00090999,120]
[343007957,1732272653087,-500.0,0.00090999,120]
[343007958,1732272653097,-714.48,0.00090999,120]
[343007959,1732272653106,-50000.0,0.00091,120]
[343007960,1732272653118,-946.49267438,0.00091132,15]
[343007961,1732272653128,-371.48840105,0.00091132,15]
[343007962,1732272653138,-338.1,0.00091152,2]
[343007963,1732272653149,-383.04151432,0.0009123,120]
[343007964,1732272653164,-116.95848568,0.0009123,120]
[343007965,1732272653174,-940.41,0.00091231,2]
[343007966,1732272653183,-168.15288651,0.00091231,120]
[343007967,1732272653192,-500.0,0.00091231,120]
[343007968,1732272653202,-500.0,0.00091231,120]
[343007969,1732272653211,-500.0,0.00091231,120]
[343007970,1732272653221,-276.17971258,0.00091231,120]
[343007971,1732272653268,-506.65727824,0.0009041,120]
[343007972,1732272653277,-223.82028742,0.00091231,120]
[343007973,1732272653287,-168.0,0.00091232,120]
[343007974,1732272653297,-500.0,0.00091499,120]
[343007975,1732272653307,-580.31,0.00091499,120]
[343007976,1732272653317,-495.76238686,0.00091499,120]
[343007977,1732272653327,-5558.3706007,0.000915,120]
[343007978,1732272653339,-10997.02007115,0.000915,120]
[343007979,1732272653350,-1455.55656038,0.000915,120]
[343007980,1732272653989,-6480.59484141,0.000915,120]
[343007981,1732272654001,-983.18,0.000915,120]
[343007982,1732272654013,-560.92,0.000915,120]
[343007983,1732272654025,-8385.858494,0.000915,120]
[343007984,1732272654042,-15578.49943236,0.000915,120]
[343007985,1732272654051,-164.0,0.00091506,120]
[343007986,1732272654061,-11757.5996,0.000919,120]
[343007987,1732272654071,-276.1,0.00091948,120]
[343007988,1732272654081,-500.0,0.00091999,120]
[343007989,1732272654091,-173.20461516,0.00091999,120]
[343007990,1732272654100,-259.06,0.00091999,120]
[343007991,1732272654110,-500.0,0.00091999,120]
[343007992,1732272654119,-500.0,0.00091999,120]
[343007993,1732272654128,-500.0,0.00091999,120]
[343007994,1732272654138,-294.57,0.00091999,120]
[343007995,1732272654150,-500.0,0.00091999,120]
[343007996,1732272654160,-500.0,0.00091999,120]
[343007997,1732272654170,-500.0,0.00091999,120]
[343007998,1732272654179,-316.69,0.00091999,120]
[343007999,1732272654188,-500.0,0.00091999,120]
[343008000,1732272654198,-500.0,0.00091999,120]
[343008001,1732272654207,-209.81032097,0.00091999,120]
[343008002,1732272654217,-500.0,0.00091999,120]
[343008003,1732272654226,-18850.04148503,0.00092,120]
[343008004,1732272654238,-6221.59999996,0.00092,120]
[343008005,1732272654250,-686.5,0.00092,120]
[343008006,1732272654435,-4154.88950854,0.00092,120]
[343008007,1732272654480,-423.52125652,0.00092,120]
[343008008,1732272654493,-315.6,0.00092,120]
[343008009,1732272654509,-2068.8614836,0.00092,120]
[343008010,1732272654523,-288.51626242,0.00092,120]
[343008011,1732272654535,-771.61581488,0.00092,120]
[343008012,1732272654547,-605.30198364,0.00092,120]
[343008013,1732272654560,-1004.86146661,0.00092,120]
[343008014,1732272654600,-9474.93945867,0.00092,120]
[343008015,1732272654681,-2692.23958359,0.00092,120]
[343008016,1732272654700,-2441.51169654,0.00092,120]
[343008017,1732272654710,-18613.98782839,0.00092,120]
[343008018,1732272654720,-1000.0,0.00092,120]
[343008019,1732272654731,-946.49267438,0.00092228,15]
[343008020,1732272654740,-371.48840105,0.00092228,15]
[343008021,1732272654750,-902.6924,0.00092499,120]
[343008022,1732272654759,-50000.0,0.000925,120]
[343008023,1732272654769,-161.03067923,0.00092502,80]
[343008024,1732272654779,-500.0,0.00092999,120]
[343008025,1732272654788,-500.0,0.00092999,120]
[343008026,1732272654798,-580.31,0.00092999,120]
[343008027,1732272654808,-940.41,0.00092999,2]
[343008028,1732272654818,-500.0,0.00092999,120]
[343008029,1732272654827,-500.0,0.00092999,120]
[343008030,1732272654836,-406.54361447,0.00092999,120]
[343008031,1732272654846,-500.0,0.00092999,120]
[343008032,1732272654855,-500.0,0.00092999,120]
[343008033,1732272654866,-500.0,0.00092999,120]
[343008034,1732272654876,-402.93,0.00092999,120]
[343008035,1732272654886,-500.0,0.00092999,120]
[343008036,1732272654897,-500.0,0.00092999,120]
[343008037,1732272654907,-500.0,0.00092999,120]
[343008038,1732272654917,-500.0,0.00092999,120]
[343008039,1732272654927,-714.48,0.00092999,120]
[343008040,1732272654937,-500.0,0.00092999,120]
[343008041,1732272654947,-50000.0,0.00093,120]
[343008042,1732272654956,-1000.0,0.00093,120]
[343008043,1732272654966,-500.0,0.00093149,120]
[343008044,1732272654976,-500.0,0.00093149,120]
[343008045,1732272654985,-500.0,0.00093149,120]
[343008046,1732272654995,-349.0,0.00093149,120]
[343008047,1732272655006,-498.63,0.00093149,120]
[343008048,1732272655016,-500.0,0.00093149,120]
[343008049,1732272655142,-500.0,0.00093149,120]
[343008050,1732272655164,-946.49267438,0.00093324,15]
[343008051,1732272655173,-371.48840105,0.00093324,15]
[343008052,1732272655183,-338.1,0.00093415,2]
[343008053,1732272655193,-500.0,0.00093499,120]
[343008054,1732272655203,-500.0,0.00093499,120]
[343008055,1732272655212,-500.0,0.00093499,120]
[343008056,1732272655221,-500.0,0.00093499,120]
[343008057,1732272655232,-50000.0,0.000935,120]
[343008058,1732272655242,-166.82955001,0.00093598,81]
[343008059,1732272655251,-1202.7,0.0009397,2]
[343008060,1732272655261,-1202.7,0.00093994,2]
[343008061,1732272655270,-635.40775702,0.00093999,120]
[343008062,1732272655279,-50000.0,0.00094,120]
[343008063,1732272655288,-1000.0,0.00094,120]
[343008064,1732272655297,-1202.7,0.00094019,2]
[343008065,1732272655307,-1202.7,0.00094044,2]
[343008066,1732272655316,-1202.7,0.00094069,2]
[343008067,1732272655326,-1202.7,0.00094093,2]
[343008068,1732272655335,-1202.7,0.00094118,2]
[343008069,1732272655344,-1127.238,0.00094134,120]
[343008070,1732272655354,-1202.7,0.00094143,2]
[343008071,1732272655363,-1202.7,0.00094168,2]
[343008072,1732272655372,-1202.7,0.00094192,2]
[343008073,1732272655381,-41291.8476,0.00094216,30]
[343008074,1732272655391,-1202.7,0.00094217,2]
[343008075,1732272655403,-1202.7,0.00094242,2]
[343008076,1732272655413,-1202.7,0.00094267,2]
[343008077,1732272655422,-1202.7,0.00094291,2]
[343008078,1732272655432,-161.03067923,0.00094301,82]
[343008079,1732272655441,-1202.7,0.00094316,2]
[343008080,1732272655451,-1202.7,0.00094341,2]
[343008081,1732272655460,-1202.7,0.00094366,2]
[343008082,1732272655469,-1202.7,0.0009439,2]
[343008083,1732272655479,-1202.7,0.00094415,2]
[343008084,1732272655488,-946.49267438,0.0009442,15]
[343008085,1732272655498,-371.48840105,0.0009442,15]
[343008086,1732272655507,-1202.7,0.0009444,2]
[343008087,1732272655516,-940.41,0.00094499,2]
[343008088,1732272655525,-500.0,0.00094499,120]
[343008089,1732272655535,-500.0,0.00094499,120]
[343008090,1732272655545,-500.0,0.00094499,120]
[343008091,1732272655556,-500.0,0.00094499,120]
[343008092,1732272655566,-500.0,0.00094499,120]
[343008093,1732272655576,-500.0,0.00094499,120]
[343008094,1732272655585,-714.48,0.00094499,120]
[343008095,1732272655595,-500.0,0.00094499,120]
[343008096,1732272655605,-50000.0,0.000945,120]
[343008097,1732272655614,-167.0657379,0.00094968,120]
[343008098,1732272655623,-500.0,0.00094998,120]
[343008099,1732272655632,-580.31,0.00094998,120]
[343008100,1732272655642,-1395.00328527,0.00094999,120]
[343008101,1732272655654,-500.0,0.00094999,120]
[343008102,1732272655663,-500.0,0.00094999,120]
[343008103,1732272655673,-500.0,0.00094999,120]
[343008104,1732272655682,-500.0,0.00094999,120]
[343008105,1732272655692,-10000.0,0.00095,90]
[343008106,1732272655701,-50000.0,0.00095,120]
[343008107,1732272655710,-1000.0,0.00095,120]
[343008108,1732272655719,-276.1,0.00095229,120]
[343008109,1732272655729,-946.49267438,0.00095516,15]
[343008110,1732272655739,-371.48840105,0.00095516,15]
[343008111,1732272655749,-338.1,0.00095679,2]
[343008112,1732272655759,-500.0,0.0009589,120]
[343008113,1732272655770,-50000.0,0.00096,120]
[343008114,1732272655779,-1000.0,0.00096,120]
[343008115,1732272655788,-3365.20706087,0.00096,120]
[343008116,1732272655797,-10675.68327052,0.00096,120]
[343008117,1732272655806,-10706.81923516,0.00096,120]
[343008118,1732272655815,-684.11604,0.0009603,120]
[343008119,1732272655825,-161.03067923,0.00096101,85]
[343008120,1732272655834,-10000.0,0.0009629,120]
[343008121,1732272655843,-18176.07965674,0.00096437,120]
[343008122,1732272655852,-3955.97681481,0.00096482,120]
[343008123,1732272655862,-50000.0,0.000965,120]
[343008124,1732272655874,-684.11604,0.0009655,120]
[343008125,1732272655887,-557.51776996,0.00096553,120]
[343008126,1732272655896,-3955.97681481,0.00096569,120]
[343008127,1732272655906,-3955.97681481,0.00096575,120]
[343008128,1732272655919,-946.49267438,0.00096612,15]
[343008129,1732272655928,-371.48840105,0.00096612,15]
[343008130,1732272655938,-18176.07965674,0.00096616,120]
[343008131,1732272655947,-18176.07965674,0.00096668,120]
[343008132,1732272655957,-3955.97681481,0.00096678,120]
[343008133,1732272655967,-557.51776996,0.00096687,120]
[343008134,1732272655976,-150.0,0.00096718,90]
[343008135,1732272655986,-150.0,0.00096718,90]
[343008136,1732272655995,-150.0,0.0009672,90]
[343008137,1732272656005,-150.0,0.00096722,90]
[343008138,1732272656015,-150.0,0.00096726,90]
[343008139,1732272656025,-557.51776996,0.00096727,120]
[343008140,1732272656035,-150.0,0.00096727,90]
[343008141,1732272656046,-150.0,0.00096728,90]
[343008142,1732272656055,-150.0,0.00096733,90]
[343008143,1732272656064,-150.0,0.00096736,90]
[343008144,1732272656074,-150.0,0.00096742,90]
[343008145,1732272656083,-150.0,0.00096744,90]
[343008146,1732272656093,-150.0,0.00096745,90]
[343008147,1732272656102,-150.0,0.00096746,90]
[343008148,1732272656111,-150.0,0.00096747,90]
[343008149,1732272656120,-150.0,0.00096747,90]
[343008150,1732272656130,-150.0,0.00096748,90]
[343008151,1732272656139,-150.0,0.00096749,90]
[343008152,1732272656151,-150.0,0.0009675,90]
[343008153,1732272656164,-150.0,0.00096755,90]
[343008154,1732272656173,-150.0,0.00096758,90]
[343008155,1732272656183,-150.0,0.00096778,90]
[343008156,1732272656194,-150.0,0.00096781,90]
[343008157,1732272656203,-150.0,0.00096782,90]
[343008158,1732272656212,-150.0,0.00096784,90]
[343008159,1732272656222,-150.0,0.00096784,90]
[343008160,1732272656234,-150.0,0.00096791,90]
[343008161,1732272656244,-150.0,0.00096796,90]
[343008162,1732272656252,-500.0,0.00096799,120]
[343008163,1732272656262,-500.0,0.00096799,120]
[343008164,1732272656271,-500.0,0.00096799,120]
[343008165,1732272656281,-714.48,0.00096799,120]